fUST/lending_fUST_20250716
["ID","MTS","AMOUNT","RATE_DAILY","PERIOD"]
[372347703,1752604239445,-460.0,0.00020269,2]
[372347704,1752604239455,-460.0,0.00020269,2]
[372347705,1752604239467,-460.0,0.00020269,2]
[372347706,1752604239477,-460.0,0.00020269,2]
[372347707,1752604239487,-460.0,0.00020269,2]
[372347708,1752604239498,-460.0,0.00020269,2]
[372347709,1752604239507,-460.0,0.00020269,2]
[372347710,1752604239517,-460.0,0.00020269,2]
[372347711,1752604239527,-460.0,0.00020269,2]
[372347712,1752604239537,-460.0,0.00020269,2]
[372347713,1752604239547,-460.0,0.00020269,2]
[372347715,1752604239557,-460.0,0.00020269,2]
[372347716,1752604239567,-460.0,0.00020269,2]
[372347718,1752604239576,-460.0,0.00020269,2]
[372347719,1752604239586,-460.0,0.00020269,2]
[372347720,1752604239596,-460.0,0.00020269,2]
[372347721,1752604239606,-460.0,0.00020269,2]
[372347722,1752604239616,-460.0,0.00020269,2]
[372347723,1752604239626,-500.0,0.00020269,2]
[372347724,1752604239635,-460.0,0.00020269,2]
[372347725,1752604239645,-460.0,0.00020269,2]
[372347726,1752604239654,-460.0,0.00020269,2]
[372347727,1752604239664,-460.0,0.00020269,2]
[372347728,1752604239673,-460.0,0.00020269,2]
[372347729,1752604239683,-522.65,0.00020269,2]
[372347730,1752604239692,-460.0,0.00020269,2]
[372347731,1752604239702,-460.0,0.00020269,2]
[372347732,1752604239721,-460.0,0.00020269,2]
[372347733,1752604239731,-254.40962379,0.00020269,2]
[372347734,1752604239741,-460.0,0.00020269,2]
[372347735,1752604239751,-460.0,0.00020269,2]
[372347738,1752604239920,-460.0,0.00020269,2]
[372347739,1752604239929,-460.0,0.00020269,2]
[372347740,1752604239939,-460.0,0.00020269,2]
[372347741,1752604239950,-956.9,0.00020269,2]
[372347742,1752604239959,-460.0,0.00020269,2]
[372347743,1752604239968,-460.0,0.00020269,2]
[372347744,1752604239978,-601.73521672,0.00020269,2]
[372347745,1752604239988,-460.0,0.00020269,2]
[372347746,1752604240004,-460.0,0.00020269,2]
[372347747,1752604240014,-460.0,0.00020269,2]
[372347748,1752604240024,-460.0,0.00020269,2]
[372347749,1752604240034,-460.0,0.00020269,2]
[372347750,1752604240043,-460.0,0.0002027,2]
[372347751,1752604240055,-460.0,0.0002027,2]
[372347752,1752604240065,-459.11770519,0.0002027,2]
[372347753,1752604240074,-460.0,0.0002027,2]
[372347754,1752604240084,-461.17470826,0.0002027,2]
[372347755,1752604240094,-497.28701315,0.0002027,2]
[372347756,1752604240103,-460.0,0.0002027,2]
[372347757,1752604240114,-460.0,0.0002027,2]
[372347758,1752604240124,-235.36896407,0.0002027,2]
[372347759,1752604240134,-460.0,0.0002027,2]
[372347760,1752604240143,-460.0,0.0002027,2]
[372347761,1752604240152,-469.01255711,0.0002027,2]
[372347762,1752604240162,-460.0,0.0002027,2]
[372347763,1752604240171,-256.12894922,0.0002027,2]
[372347764,1752604240180,-460.0,0.0002027,2]
[372347765,1752604240191,-460.0,0.0002027,2]
[372347766,1752604240200,-546.62496338,0.0002027,2]
[372347767,1752604240211,-460.0,0.0002027,2]
[372347768,1752604240220,-460.0,0.0002027,2]
[372347769,1752604240230,-460.0,0.0002027,2]
[372347770,1752604240240,-462.54914876,0.0002027,2]
[372347771,1752604240250,-460.0,0.0002027,2]
[372347772,1752604240260,-460.0,0.0002027,2]
[372347773,1752604240270,-460.0,0.0002027,2]
[372347774,1752604240279,-253.46246032,0.0002027,2]
[372347775,1752604240289,-460.0,0.0002027,2]
[372347776,1752604240298,-460.0,0.0002027,2]
[372347777,1752604240307,-460.0,0.0002027,2]
[372347778,1752604240317,-152.79,0.0002027,2]
[372347779,1752604240326,-460.0,0.0002027,2]
[372347780,1752604240336,-460.0,0.0002027,2]
[372347781,1752604240346,-460.0,0.0002027,2]
[372347782,1752604240356,-461.28184815,0.0002027,2]
[372347783,1752604240365,-460.0,0.0002027,2]
[372347784,1752604240375,-460.0,0.0002027,2]
[372347785,1752604240384,-460.0,0.0002027,2]
[372347786,1752604240394,-460.0,0.0002027,2]
[372347787,1752604240404,-500.0,0.0002027,2]
[372347788,1752604240413,-460.0,0.0002027,2]
[372347789,1752604240423,-460.0,0.0002027,2]
[372347790,1752604240432,-460.0,0.0002027,2]
[372347791,1752604240443,-460.0,0.0002027,2]
[372347792,1752604240452,-461.97345961,0.0002027,2]
[372347793,1752604240464,-460.0,0.0002027,2]
[372347794,1752604240474,-460.0,0.0002027,2]
[372347795,1752604240484,-460.0,0.0002027,2]
[372347796,1752604240494,-460.0,0.0002027,2]
[372347797,1752604240504,-460.0,0.0002027,2]
[372347798,1752604240513,-462.20585541,0.0002027,2]
[372347799,1752604240523,-460.98222374,0.0002027,2]
[372347800,1752604240533,-460.0,0.0002027,2]
[372347801,1752604240542,-460.0,0.0002027,2]
[372347802,1752604240551,-500.0,0.0002027,2]
[372347803,1752604240562,-500.0,0.0002027,2]
[372347804,1752604240572,-500.0,0.0002027,2]
[372347805,1752604240582,-460.0,0.0002027,2]
[372347806,1752604240592,-460.0,0.0002027,2]
[372347807,1752604240603,-460.0,0.0002027,2]
[372347808,1752604240614,-460.0,0.0002027,2]
[372347809,1752604240624,-460.24859048,0.0002027,2]
[372347810,1752604240633,-460.0,0.0002027,2]
[372347811,1752604240643,-460.0,0.0002027,2]
[372347812,1752604240653,-460.0,0.0002027,2]
[372347813,1752604240663,-460.0,0.0002027,2]
[372347814,1752604240674,-460.0,0.0002027,2]
[372347815,1752604240684,-460.42684504,0.0002027,2]
[372347816,1752604240693,-460.0,0.0002027,2]
[372347817,1752604240703,-460.0,0.0002027,2]
[372347818,1752604240717,-460.0,0.0002027,2]
[372347819,1752604240727,-460.0,0.00020271,2]
[372347820,1752604240736,-460.0,0.00020271,2]
[372347821,1752604240745,-460.0,0.00020271,2]
[372347822,1752604240755,-460.0,0.00020271,2]
[372347823,1752604240765,-460.0,0.00020271,2]
[372347824,1752604240777,-460.0,0.00020271,2]
[372347825,1752604240792,-460.0,0.00020271,2]
[372347826,1752604240802,-460.0,0.00020271,2]
[372347827,1752604240813,-460.0,0.00020271,2]
[372347828,1752604240822,-460.0,0.00020271,2]
[372347829,1752604240832,-189.04360871,0.00020271,2]
[372347830,1752604240843,-460.0,0.00020271,2]
[372347831,1752604240853,-460.0,0.00020271,2]
[372347832,1752604240863,-460.0,0.00020271,2]
[372347833,1752604240873,-460.0,0.00020271,2]
[372347834,1752604240884,-500.0,0.00020273,2]
[372347835,1752604240894,-500.0,0.00020273,2]
[372347836,1752604240903,-500.0,0.00020273,2]
[372347837,1752604240914,-460.0,0.00020542,2]
[372347838,1752604240928,-642.81,0.00020542,2]
[372347839,1752604240937,-460.0,0.00020542,2]
[372347840,1752604240946,-460.0,0.00020542,2]
[372347841,1752604240956,-460.0,0.00020542,2]
[372347842,1752604240968,-746.93,0.00020542,2]
[372347843,1752604240978,-460.0,0.00020542,2]
[372347844,1752604240987,-180.09,0.00020542,2]
[372347845,1752604240997,-460.0,0.00020542,2]
[372347846,1752604241006,-460.0,0.00020542,2]
[372347847,1752604241016,-460.0,0.00020542,2]
[372347848,1752604241025,-460.0,0.00020542,2]
[372347849,1752604241035,-164.21028227,0.00020542,2]
[372347850,1752604241044,-460.0,0.00020542,2]
[372347851,1752604241053,-460.0,0.00020542,2]
[372347852,1752604241063,-460.0,0.00020543,2]
[372347853,1752604241072,-460.0,0.00020543,2]
[372347854,1752604241083,-460.0,0.00020543,2]
[372347855,1752604241093,-460.0,0.00020543,2]
[372347856,1752604241104,-460.0,0.00020543,2]
[372347857,1752604241114,-460.0,0.00020543,2]
[372347858,1752604241124,-474.86429662,0.00020543,2]
[372347859,1752604241134,-460.0,0.00020543,2]
[372347860,1752604241145,-460.0,0.00020543,2]
[372347861,1752604241155,-460.0,0.00020543,2]
[372347862,1752604241166,-239.44,0.00020543,2]
[372347863,1752604241176,-498.8,0.00020543,2]
[372347864,1752604241187,-460.0,0.00020543,2]
[372347865,1752604241197,-460.0,0.00020543,2]
[372347866,1752604241207,-393.59,0.00020543,2]
[372347867,1752604241220,-460.0,0.00020543,2]
[372347868,1752604241229,-460.0,0.00020543,2]
[372347869,1752604241239,-460.0,0.00020543,2]
[372347870,1752604241248,-460.0,0.00020543,2]
[372347871,1752604241257,-460.0,0.00020543,2]
[372347872,1752604241267,-460.0,0.00020543,2]
[372347873,1752604241277,-611.08,0.00020543,2]
[372347874,1752604241288,-426.3400739,0.00020543,2]
[372347875,1752604241299,-522.65,0.00020543,2]
[372347876,1752604241309,-599.7563936,0.00020543,2]
[372347877,1752604241319,-460.0,0.00020543,2]
[372347878,1752604241329,-460.0,0.00020543,2]
[372347879,1752604241338,-956.9,0.00020543,2]
[372347880,1752604241347,-460.0,0.00020543,2]
[372347881,1752604241357,-460.0,0.00020543,2]
[372347882,1752604241367,-460.0,0.00020543,2]
[372347883,1752604241377,-460.0,0.00020544,2]
[372347884,1752604241388,-600.0,0.00020544,2]
[372347885,1752604241397,-460.0,0.00020544,2]
[372347886,1752604241407,-460.0,0.00020544,2]
[372347887,1752604241417,-460.0,0.00020544,2]
[372347888,1752604241428,-460.0,0.00020544,2]
[372347889,1752604241438,-460.0,0.00020544,2]
[372347890,1752604241448,-460.0,0.00020544,2]
[372347891,1752604241460,-460.0,0.00020544,2]
[372347892,1752604241476,-460.0,0.00020544,2]
[372347893,1752604241486,-460.0,0.00020544,2]
[372347894,1752604241495,-460.0,0.00020544,2]
[372347895,1752604241505,-460.0,0.00020544,2]
[372347896,1752604241515,-460.0,0.00020544,2]
[372347897,1752604241524,-445.7190445,0.00020545,2]
[372347898,1752604241533,-460.0,0.00020545,2]
[372347899,1752604241543,-1164.09,0.00020708,10]
[372347900,1752604241552,-516.06,0.00020807,3]
[372347901,1752604241562,-642.81,0.00020816,2]
[372347902,1752604241571,-224.04,0.00020816,2]
[372347903,1752604241581,-460.0,0.00020816,2]
[372347904,1752604241591,-460.0,0.00020816,2]
[372347905,1752604241600,-746.93,0.00020816,2]
[372347906,1752604241609,-213.34,0.00020816,2]
[372347907,1752604241619,-460.0,0.00020816,2]
[372347908,1752604241629,-509.1,0.00020816,2]
[372347909,1752604241638,-460.0,0.00020816,2]
[372347910,1752604241647,-179.1601702,0.00020816,2]
[372347911,1752604241657,-460.0,0.00020817,2]
[372347912,1752604241666,-460.0,0.00020817,2]
[372347913,1752604241676,-340.55,0.00020817,2]
[372347914,1752604241685,-460.0,0.00020817,2]
[372347915,1752604241694,-498.8,0.00020817,2]
[372347916,1752604241703,-377.26,0.00020817,2]
[372347917,1752604241714,-460.0,0.00020817,2]
[372347918,1752604241723,-294.32,0.00020817,2]
[372347919,1752604241733,-460.0,0.00020817,2]
[372347920,1752604241742,-304.84,0.00020817,2]
[372347921,1752604241751,-460.0,0.00020817,2]
[372347922,1752604241761,-439.50923246,0.00020817,2]
[372347923,1752604241771,-522.65,0.00020817,2]
[372347924,1752604241780,-183.568206,0.00020817,2]
[372347925,1752604241789,-956.9,0.00020817,2]
[372347926,1752604241799,-460.0,0.00020817,2]
[372347927,1752604241809,-460.0,0.00020817,2]
[372347928,1752604241818,-460.0,0.00020817,2]
[372347929,1752604241827,-460.0,0.00020819,2]
[372347930,1752604241836,-857.45403213,0.00020819,2]
[372347957,1752604242929,-460.0,0.00020268,2]
[372347958,1752604242941,-460.0,0.00020269,2]
[372347959,1752604242951,-624.21028227,0.00020819,2]
[372347960,1752604242982,-1811.42057727,0.00020819,2]
[372347961,1752604242992,-1000.0,0.00020821,2]
[372347962,1752604243001,-1000.0,0.00020821,2]
[372347963,1752604243011,-173.915,0.00020861,2]
[372347964,1752604243021,-500.0,0.00020899,2]
[372347965,1752604243031,-500.0,0.00020899,2]
[372347966,1752604243040,-206.22273277,0.00020899,2]
[372347967,1752604243049,-500.0,0.00020899,2]
[372347968,1752604243059,-500.0,0.00020899,2]
[372347969,1752604243069,-500.0,0.00020899,2]
[372347970,1752604243079,-500.0,0.00020899,2]
[372347971,1752604243088,-500.0,0.00020899,2]
[372347972,1752604243099,-500.0,0.00020899,2]
[372347973,1752604243108,-502.8709569,0.00020899,2]
[372347974,1752604243117,-937.0,0.000209,2]
[372347975,1752604243127,-937.0,0.000209,2]
[372347976,1752604243136,-937.0,0.000209,2]
[372347977,1752604243146,-937.0,0.000209,2]
[372347978,1752604243155,-937.0,0.000209,2]
[372347980,1752604243164,-937.0,0.000209,2]
[372347981,1752604243174,-937.0,0.000209,2]
[372347982,1752604243183,-937.0,0.000209,2]
[372347983,1752604243192,-937.0,0.000209,2]
[372347984,1752604243201,-937.0,0.000209,2]
[372347985,1752604243212,-200.10610121,0.00020908,2]
[372347986,1752604243222,-17662.4604532,0.00020921,3]
[372347987,1752604243231,-1019.5855693,0.0002096,2]
[372347988,1752604243241,-264.75671651,0.0002096,2]
[372347989,1752604243250,-481.12,0.00021,2]
[372347990,1752604243259,-1757.61803022,0.0002102,2]
[372347991,1752604243268,-370000.0,0.00021021,2]
[372347992,1752604243278,-838.84061749,0.0002106,2]
[372347993,1752604243287,-215.50840239,0.0002106,2]
[372347994,1752604243295,-468.75,0.00021062,2]
[372347995,1752604243305,-520.84375,0.00021062,2]
[372347996,1752604243314,-160.0,0.00021062,2]
[372347997,1752604243324,-536.8389108,0.00021073,2]
[372347998,1752604243335,-500.0,0.00021073,2]
[372347999,1752604243351,-502.3432928,0.00021073,2]
[372348000,1752604243360,-500.0,0.00021073,2]
[372348001,1752604243369,-500.0,0.00021073,2]
[372348002,1752604243379,-642.81,0.0002109,2]
[372348003,1752604243388,-460.0,0.0002109,2]
[372348004,1752604243399,-460.0,0.0002109,2]
[372348005,1752604243408,-746.93,0.0002109,2]
[372348006,1752604243417,-460.0,0.0002109,2]
[372348007,1752604243427,-460.0,0.0002109,2]
[372348008,1752604243436,-460.0,0.00021091,2]
[372348009,1752604243446,-498.8,0.00021091,2]
[372348010,1752604243455,-554.27119227,0.00021091,2]
[372348012,1752604243467,-460.0,0.00021091,2]
[372348013,1752604243477,-522.65,0.00021091,2]
[372348014,1752604243487,-956.9,0.00021091,2]
[372348015,1752604243496,-460.0,0.00021091,2]
[372348016,1752604243506,-460.0,0.00021091,2]
[372348017,1752604243515,-460.0,0.00021091,2]
[372348018,1752604243524,-1212.79,0.000211,2]
[372348019,1752604243642,-642.81,0.00021364,2]
[372348020,1752604243652,-460.0,0.00021364,2]
[372348021,1752604243661,-460.0,0.00021364,2]
[372348022,1752604243671,-746.93,0.00021364,2]
[372348023,1752604243680,-460.0,0.00021364,2]
[372348024,1752604243690,-460.0,0.00021364,2]
[372348025,1752604243700,-355.28,0.00021365,2]
[372348026,1752604243710,-498.8,0.00021365,2]
[372348027,1752604243719,-460.0,0.00021365,2]
[372348028,1752604243729,-522.65,0.00021365,2]
[372348029,1752604243739,-956.9,0.00021365,2]
[372348030,1752604243748,-460.0,0.00021365,2]
[372348031,1752604243758,-460.0,0.00021365,2]
[372348032,1752604243768,-500.0,0.00021368,2]
[372348033,1752604243779,-500.0,0.00021621,2]
[372348034,1752604243788,-740.24514543,0.00021621,2]
[372348035,1752604243798,-1000.0,0.00021621,2]
[372348036,1752604243807,-215.0738,0.00021626,2]
[372348037,1752604243816,-642.81,0.00021638,2]
[372348038,1752604243827,-460.0,0.00021638,2]
[372348039,1752604243846,-460.0,0.00021638,2]
[372348040,1752604243863,-746.93,0.00021638,2]
[372348041,1752604243874,-460.0,0.00021638,2]
[372348042,1752604243884,-393.47,0.00021638,2]
[372348043,1752604243897,-498.8,0.00021639,2]
[372348044,1752604243909,-460.0,0.00021639,2]
[372348045,1752604243921,-522.65,0.00021639,2]
[372348046,1752604243932,-956.9,0.00021639,2]
[372348047,1752604243942,-460.0,0.00021639,2]
[372348048,1752604243953,-460.0,0.00021639,2]
[372348049,1752604243964,-200.10610121,0.00021646,2]
[372348050,1752604243974,-500.0,0.00021682,2]
[372348051,1752604243983,-14820.02,0.000217,2]
[372348052,1752604243993,-3000.0,0.000219,2]
[372348053,1752604244002,-5307.041601,0.0002191,2]
[372348054,1752604244012,-642.81,0.00021912,2]
[372348055,1752604244023,-460.0,0.00021912,2]
[372348056,1752604244032,-460.0,0.00021912,2]
[372348057,1752604244044,-746.93,0.00021912,2]
[372348058,1752604244056,-460.0,0.00021912,2]
[372348059,1752604244064,-498.8,0.00021913,2]
[372348060,1752604244073,-460.0,0.00021913,2]
[372348061,1752604244083,-522.65,0.00021913,2]
[372348062,1752604244092,-956.9,0.00021913,2]
[372348063,1752604244101,-460.0,0.00021913,2]
[372348064,1752604244110,-460.0,0.00021913,2]
[372348065,1752604244120,-264.75671649,0.00021943,2]
[372348066,1752604244129,-500.0,0.00021967,2]
[372348067,1752604244138,-12535.95,0.00022,7]
[372348068,1752604244147,-172.0,0.00022,2]
[372348069,1752604244157,-160.0,0.00022017,2]
[372348070,1752604244166,-420.0,0.00022062,2]
[372348071,1752604244175,-642.81,0.00022186,2]
[372348072,1752604244185,-339.34,0.00022186,2]
[372348073,1752604244194,-460.0,0.00022186,2]
[372348074,1752604244204,-746.93,0.00022186,2]
[372348075,1752604244215,-460.0,0.00022186,2]
[372348076,1752604244225,-498.8,0.00022187,2]
[372348077,1752604244234,-177.42,0.00022187,2]
[372348078,1752604244243,-522.65,0.00022187,2]
[372348079,1752604244253,-956.9,0.00022187,2]
[372348080,1752604244262,-460.0,0.00022187,2]
[372348081,1752604244272,-460.0,0.00022187,2]
[372348082,1752604244281,-200.10610121,0.00022385,2]
[372348083,1752604244291,-642.81,0.0002246,2]
[372348084,1752604244300,-460.0,0.0002246,2]
[372348085,1752604244309,-746.93,0.0002246,2]
[372348086,1752604244319,-460.0,0.0002246,2]
[372348087,1752604244327,-498.8,0.00022461,2]
[372348088,1752604244337,-522.65,0.00022461,2]
[372348089,1752604244347,-956.9,0.00022461,2]
[372348090,1752604244356,-562.27,0.00022461,2]
[372348091,1752604244365,-460.0,0.00022461,2]
[372348092,1752604244375,-19798.199497,0.0002249,7]
[372348093,1752604244384,-151.0,0.0002249,7]
[372348094,1752604244393,-151.0,0.0002249,7]
[372348095,1752604244403,-151.0,0.0002249,7]
[372348096,1752604244413,-151.0,0.0002249,7]
[372348097,1752604244422,-151.0,0.0002249,7]
[372348098,1752604244432,-213.070166,0.0002249,7]
[372348099,1752604244441,-852.80024,0.00022515,2]
[372348100,1752604244451,-260.0,0.00022565,2]
[372348101,1752604244462,-642.81,0.00022734,2]
[372348102,1752604244471,-460.0,0.00022734,2]
[372348103,1752604244480,-746.93,0.00022734,2]
[372348104,1752604244489,-460.0,0.00022734,2]
[372348105,1752604244499,-498.8,0.00022735,2]
[372348106,1752604244508,-522.65,0.00022735,2]
[372348107,1752604244518,-956.9,0.00022735,2]
[372348108,1752604244528,-460.0,0.00022735,2]
[372348109,1752604244538,-1212.79,0.000228,7]
[372348110,1752604244547,-264.75671649,0.00022925,2]
[372348111,1752604244556,-223.0315306,0.00022995,2]
[372348112,1752604244565,-880.43,0.00023,2]
[372348113,1752604244575,-838.84061749,0.00023,3]
[372348114,1752604244585,-520.84375,0.00023,3]
[372348115,1752604244595,-29431.88237576,0.00023,10]
[372348116,1752604244605,-642.81,0.00023008,2]
[372348117,1752604244615,-460.0,0.00023008,2]
[372348118,1752604244625,-746.93,0.00023008,2]
[372348119,1752604244638,-434.14608324,0.00023008,2]
[372348120,1752604244647,-498.8,0.00023009,2]
[372348121,1752604244656,-522.65,0.00023009,2]
[372348122,1752604244666,-956.9,0.00023009,2]
[372348123,1752604244675,-460.0,0.00023009,2]
[372348124,1752604244685,-172.0,0.00023014,7]
[372348125,1752604244693,-360.0,0.00023113,2]
[372348126,1752604244703,-200.10610121,0.00023124,2]
[372348127,1752604244713,-1019.5855693,0.00023145,2]
[372348128,1752604244722,-642.81,0.00023282,2]
[372348129,1752604244732,-460.0,0.00023282,2]
[372348130,1752604244741,-746.93,0.00023282,2]
[372348131,1752604244751,-287.257331,0.00023282,7]
[372348132,1752604244760,-151.0,0.00023282,7]
[372348133,1752604244769,-151.0,0.00023282,7]
[372348134,1752604244779,-151.0,0.00023282,7]
[372348135,1752604244788,-498.8,0.00023283,2]
[372348136,1752604244798,-151.0,0.00023283,7]
[372348137,1752604244808,-151.0,0.00023283,7]
[372348138,1752604244817,-522.65,0.00023283,2]
[372348139,1752604244826,-956.9,0.00023283,2]
[372348140,1752604244836,-460.0,0.00023283,2]
[372348141,1752604244849,-590.82980324,0.0002334,2]
[372348142,1752604244858,-14820.02,0.000235,2]
[372348143,1752604244867,-642.81,0.00023556,2]
[372348144,1752604244877,-460.0,0.00023556,2]
[372348145,1752604244886,-746.93,0.00023556,2]
[372348146,1752604244897,-498.8,0.00023557,2]
[372348147,1752604244907,-522.65,0.00023557,2]
[372348148,1752604244923,-956.9,0.00023557,2]
[372348149,1752604244936,-460.0,0.00023557,2]
[372348150,1752604244948,-2155.0,0.00023557,2]
[372348151,1752604244960,-968.0,0.00023557,2]
[372348152,1752604244972,-407.0,0.00023557,2]
[372348153,1752604244982,-555.08938175,0.00023661,2]
[372348154,1752604244994,-481.12,0.000237,7]
[372348155,1752604245007,-12535.95,0.000237,7]
[372348156,1752604245019,-642.81,0.0002383,2]
[372348157,1752604245030,-460.0,0.0002383,2]
[372348158,1752604245042,-746.93,0.0002383,2]
[372348159,1752604245054,-498.8,0.00023831,2]
[372348160,1752604245065,-522.65,0.00023831,2]
[372348161,1752604245078,-956.9,0.00023831,2]
[372348162,1752604245091,-207.25,0.00023831,2]
[372348163,1752604245103,-200.10610121,0.00023863,2]
[372348164,1752604245114,-519.95747506,0.00023874,2]
[372348165,1752604245126,-264.75671649,0.00023908,2]
[372348166,1752604245137,-520.84375,0.00024,7]
[372348167,1752604245148,-642.81,0.00024104,2]
[372348168,1752604245157,-174.57,0.00024104,2]
[372348169,1752604245168,-746.93,0.00024104,2]
[372348170,1752604245180,-498.8,0.00024105,2]
[372348171,1752604245192,-522.65,0.00024105,2]
[372348172,1752604245203,-956.9,0.00024105,2]
[372348173,1752604245215,-175.0,0.00024164,7]
[372348174,1752604245227,-168.0,0.0002423,2]
[372348175,1752604245239,-231.28369723,0.00024364,2]
[372348176,1752604245250,-642.81,0.00024378,2]
[372348177,1752604245261,-746.93,0.00024378,2]
[372348178,1752604245272,-498.8,0.00024379,2]
[372348179,1752604245283,-522.65,0.00024379,2]
[372348180,1752604245296,-956.9,0.00024379,2]
[372348181,1752604245307,-151.0,0.000244,9]
[372348182,1752604245318,-494.905065,0.00024401,8]
[372348183,1752604245328,-151.0,0.000245,5]
[372348184,1752604245339,-168.0,0.00024567,2]
[372348185,1752604245351,-642.81,0.00024652,2]
[372348186,1752604245362,-746.93,0.00024652,2]
[372348187,1752604245373,-231.21611,0.00024652,7]
[372348188,1752604245385,-151.0,0.00024652,7]
[372348189,1752604245396,-151.0,0.00024652,7]
[372348190,1752604245407,-151.0,0.00024652,7]
[372348191,1752604245419,-498.8,0.00024653,2]
[372348192,1752604245429,-522.65,0.00024653,2]
[372348193,1752604245440,-956.9,0.00024653,2]
[372348194,1752604245451,-380.0,0.00024658,2]
[372348195,1752604245464,-200.0,0.00024658,15]
[372348196,1752604245475,-4111.74065445,0.000248,2]
[372348197,1752604245488,-264.75671649,0.0002489,2]
[372348198,1752604245500,-1119.38090447,0.0002489,2]
[372348199,1752604245511,-200.0,0.00024899,2]
[372348200,1752604245522,-838.84061749,0.000249,7]
[372348201,1752604245533,-151.0,0.000249,7]
[372348202,1752604245544,-1212.79,0.000249,7]
[372348203,1752604245554,-151.0,0.000249,7]
[372348204,1752604245564,-151.0,0.000249,7]
[372348205,1752604245576,-170.544995,0.000249,7]
[372348206,1752604245586,-151.0,0.000249,7]
[372348207,1752604245598,-151.0,0.000249,7]
[372348208,1752604245611,-151.0,0.000249,7]
[372348209,1752604245624,-151.0,0.000249,7]
[372348210,1752604245634,-151.0,0.000249,7]
[372348211,1752604245646,-151.0,0.000249,7]
[372348212,1752604245655,-151.0,0.000249,7]
[372348213,1752604245666,-151.0,0.000249,7]
[372348214,1752604245677,-151.0,0.000249,7]
[372348215,1752604245687,-151.0,0.000249,7]
[372348216,1752604245699,-151.0,0.000249,7]
[372348217,1752604245711,-151.0,0.000249,7]
[372348218,1752604245724,-151.0,0.000249,7]
[372348219,1752604245734,-151.0,0.000249,7]
[372348220,1752604245746,-151.0,0.000249,7]
[372348221,1752604245757,-218.424362,0.000249,7]
[372348222,1752604245767,-151.0,0.000249,7]
[372348223,1752604245778,-151.0,0.000249,7]
[372348224,1752604245790,-716431.134226,0.000249,2]
[372348225,1752604245802,-151.0,0.000249,7]
[372348226,1752604245814,-151.0,0.000249,7]
[372348227,1752604245825,-151.0,0.000249,7]
[372348228,1752604245836,-252.920952,0.000249,7]
[372348229,1752604245849,-151.0,0.000249,7]
[372348230,1752604245860,-642.81,0.00024926,2]
[372348231,1752604245872,-746.93,0.00024926,2]
[372348232,1752604245885,-498.8,0.00024927,2]
[372348233,1752604245897,-522.65,0.00024927,2]
[372348234,1752604245908,-956.9,0.00024927,2]